bitfinex-derivatives/quotes_SOLF0:USTF0_20260115
["timestamp","ask_amount","ask_price","bid_price","bid_amount"]
[1768491732770,29.27781707,142.4,142.34,6.37435489]
[1768491733067,29.27781707,142.4,142.35,6.3241]
[1768491733770,0.04742339,142.39,142.35,6.3241]
[1768491734864,29.27781707,142.43,142.35,6.3241]
[1768491735064,5.13385782,142.42,142.34,5.77217637]
[1768491735264,29.27781707,142.43,142.35,98.3785]
[1768491735460,29.27781707,142.48,142.36,5.77217637]
[1768491735665,34.41361579,142.47,142.4,6.322]
[1768491735959,5.13579872,142.46,142.4,6.322]
[1768491736165,29.27781707,142.47,142.42,0.05121549]
[1768491736565,29.32475544,142.46,142.4,6.322]
[1768491737373,0.04693837,142.46,142.38,104.2024902]
[1768491737573,0.04693837,142.46,142.4,5.8507902]
[1768491737774,29.27781707,142.49,142.41,0.0461924]
[1768491738273,29.27781707,142.49,142.42,6.321]
[1768491739066,5.13338972,142.48,142.4,6.3218]
[1768491739268,29.27781707,142.46,142.36,83.0]
[1768491739571,0.05046852,142.45,142.36,88.90431019]
[1768491739772,29.27781707,142.46,142.36,88.90431019]
[1768491739972,29.27781707,142.46,142.39,6.3224]
[1768491740378,0.05100143,142.44,142.41,0.04617073]
[1768491742474,28.08421266,142.49,142.41,6.36767073]
[1768491742674,33.21781663,142.48,142.41,6.36767073]
[1768491742874,28.08421266,142.48,142.41,6.3215]
[1768491743175,28.08421266,142.48,142.36,82.98]
[1768491743365,28.08421266,142.46,142.36,82.98]
[1768491743563,28.08421266,142.46,142.35,104.33784055]
[1768491743564,28.08421266,142.46,142.41,0.0498029]
[1768491743765,0.05392182,142.42,142.35,187.31784055]
[1768491744077,28.08421266,142.46,142.35,187.31784055]
[1768491744472,28.08421266,142.46,142.36,6.02593192]
[1768491744978,28.08421266,142.46,142.4,0.04587414]
[1768491745182,0.04754601,142.42,142.38,6.3229]
[1768491746483,0.04754601,142.42,142.39,0.05309668]
[1768491746772,30.78397506,142.5,142.39,6.15045985]
[1768491747081,30.78397506,142.5,142.4,6.09736317]
[1768491747270,30.78397506,142.5,142.41,6.3212]
[1768491747471,36.35679805,142.49,142.41,6.3212]
[1768491747674,30.78397506,142.49,142.41,6.3212]
[1768491747881,5.5733377,142.48,142.44,0.0473008]
[1768491748078,30.78397506,142.49,142.44,0.0473008]
[1768491750379,0.04871614,142.48,142.44,0.0473008]
[1768491756980,30.78397506,142.52,142.44,0.0473008]
[1768491757183,10.70854664,142.51,142.44,0.0473008]
[1768491757385,30.78397506,142.52,142.44,0.0473008]
[1768491757686,5.56946624,142.51,142.44,0.0473008]
[1768491757982,30.78397506,142.52,142.45,6.3198]
[1768491758189,5.56923809,142.51,142.45,6.3198]
[1768491758373,0.04894815,142.49,142.43,6.3205]
[1768491758574,30.83292321,142.49,142.37,6.23675824]
[1768491758780,30.78397506,142.47,142.37,6.23675824]
[1768491758980,30.78397506,142.47,142.34,187.58993518]
[1768491759176,30.78397506,142.45,142.34,89.20763518]
[1768491759581,30.78397506,142.45,142.37,6.3234]
[1768491759782,30.78397506,142.45,142.38,0.05016483]
[1768491760383,30.78397506,142.45,142.38,6.37306483]
[1768491761485,30.82973581,142.43,142.38,0.05016483]
[1768491761693,36.35552825,142.42,142.34,89.20763518]
[1768491761983,30.78397506,142.42,142.34,95.53203518]
[1768491762287,30.78397506,142.4,142.31,6.27969397]
[1768491762686,30.78397506,142.4,142.33,6.3251]
[1768491762990,30.78397506,142.4,142.34,0.04780066]
[1768491763287,0.04729101,142.38,142.34,0.04780066]
[1768491764388,37.10827506,142.36,142.24,12.67378354]
[1768491764592,30.78397506,142.34,142.21,111.14288354]
[1768491764778,30.78397506,142.34,142.22,12.67378354]
[1768491765089,30.78397506,142.32,142.23,6.3294]
[1768491765289,30.78397506,142.32,142.21,98.4691]
[1768491765290,30.78397506,142.32,142.2,82.98]
[1768491765489,0.04691209,142.29,142.21,6.3304]
[1768491765792,0.04691209,142.29,142.2,82.98]
[1768491766090,30.78397506,142.3,142.2,89.3107]
[1768491766291,30.78397506,142.3,142.23,0.05263433]
[1768491766886,113.78397506,142.33,142.23,0.05263433]
[1768491767188,113.78397506,142.33,142.22,12.74640716]
[1768491767590,36.34022929,142.32,142.22,12.74640716]
[1768491767789,36.34022929,142.32,142.26,0.05178461]
[1768491767790,0.04802347,142.29,142.26,0.05178461]
[1768491769296,30.78397506,142.32,142.26,0.05178461]
[1768491770890,30.78397506,142.32,142.24,6.3289]
[1768491771390,30.78397506,142.32,142.22,6.3299]
[1768491772294,30.78397506,142.32,142.2,6.3308]
[1768491772690,89.345,142.34,142.21,13.02639028]
[1768491772895,29.54009365,142.36,142.25,13.02639028]
[1768491773595,0.05091049,142.32,142.25,13.02639028]
[1768491773904,0.05091049,142.32,142.27,6.3276]
[1768491774091,0.05091049,142.32,142.27,6.37275553]
[1768491774598,29.54009365,142.36,142.28,6.3272]
[1768491775698,0.0522095,142.33,142.31,0.05124419]
[1768491776997,0.0522095,142.33,142.26,6.3281]
[1768491777297,72.3822,142.38,142.31,111.53837435]
[1768491777495,29.54009365,142.47,142.33,98.391]
[1768491777698,29.54009365,142.45,142.34,13.13427435]
[1768491778294,29.54009365,142.45,142.35,6.3241]
[1768491778900,0.04947542,142.41,142.39,0.04452296]
[1768491780005,29.54009365,142.45,142.39,0.04452296]
[1768491781600,0.05351166,142.43,142.39,0.04452296]
[1768491781796,83.04,142.47,142.39,6.36672296]
[1768491782601,29.54009365,142.48,142.39,13.28117414]
[1768491783001,29.54009365,142.52,142.45,6.3196]
[1768491783201,29.54009365,142.52,142.44,13.2563155]
[1768491783399,0.05180388,142.5,142.42,181.37649087]
[1768491783594,0.05180388,142.5,142.44,98.3162]
[1768491783798,30.76191796,142.55,142.45,98.35776302]
[1768491784005,30.76191796,142.55,142.45,0.04856302]
[1768491784206,30.76191796,142.55,142.44,111.5725155]
[1768491784908,30.76191796,142.55,142.44,13.2563155]
[1768491785100,30.76191796,142.55,142.48,0.05120552]
[1768491786303,2.431e-05,142.55,142.49,13.31328218]
[1768491786503,47.14858436,142.59,142.5,13.31328218]
[1768491787005,47.14858436,142.59,142.5,19.63048218]
[1768491787194,47.14858436,142.59,142.53,0.05104751]
[1768491787397,29.54009365,142.58,142.53,0.05104751]
[1768491788304,30.94009365,142.58,142.45,98.3089]
[1768491788511,29.54009365,142.56,142.45,111.65920536]
[1768491789011,29.54009365,142.56,142.47,6.3187]
[1768491789505,29.54009365,142.56,142.5,0.05270639]
[1768491789709,0.04560625,142.53,142.5,0.05270639]
[1768491790006,47.14858436,142.59,142.52,6.3165]
[1768491790210,17.60849071,142.59,142.52,98.2609]
[1768491790406,82.98,142.62,142.53,13.34119238]
[1768491790617,98.1184,142.73,142.58,6.3138]
[1768491790618,29.54009365,142.68,142.58,6.3138]
[1768491790815,29.54009365,142.68,142.55,98.2378]
[1768491791113,0.05056924,142.64,142.62,0.04727466]
[1768491791315,0.05056924,142.64,142.56,6.3146]
[1768491791817,29.54009365,142.65,142.56,104.548]
[1768491792019,29.54009365,142.65,142.57,98.2252]
[1768491792413,29.54009365,142.68,142.58,98.2155]
[1768491792715,98.0993,142.76,142.58,98.2155]
[1768491792716,112.50009365,142.71,142.61,98.1987]
[1768491792918,29.54009365,142.71,142.6,0.05153644]
[1768491793110,29.54009365,142.66,142.54,6.3157]
[1768491793314,29.54009365,142.64,142.51,98.2664]
[1768491793512,29.54009365,142.64,142.48,98.2838]
[1768491793713,29.54009365,142.62,142.48,82.94]
[1768491794219,0.05339228,142.56,142.48,82.94]
[1768491794818,0.05339228,142.56,142.48,6.3184]
[1768491795520,0.05339228,142.56,142.51,0.05109416]
[1768491796422,29.54009365,142.6,142.52,6.3167]
[1768491796823,29.54009365,142.6,142.48,98.2838]
[1768491797023,29.54009365,142.6,142.5,6.3174]
[1768491797617,29.54009365,142.6,142.54,0.05205657]
[1768491799018,29.54009365,142.6,142.44,98.3145]
[1768491799321,29.54009365,142.57,142.43,98.3227]
[1768491799514,29.54009365,142.55,142.44,98.3152]
[1768491800425,29.54009365,142.55,142.48,0.05163885]
[1768491800819,112.46009365,142.55,142.48,0.05163885]
[1768491801321,29.54009365,142.55,142.48,0.05163885]
[1768491802122,10.38561937,142.61,142.48,0.05163885]
[1768491802123,28.94953345,142.59,142.48,0.05163885]
[1768491802326,28.94953345,142.59,142.48,98.33753885]
[1768491802527,28.94953345,142.59,142.51,6.317]
[1768491802729,28.94953345,142.59,142.52,0.05330547]
[1768491803426,30.34953345,142.59,142.46,82.92]
[1768491803624,28.94953345,142.59,142.46,82.92]
[1768491804528,30.94086713,142.57,142.46,82.92]
[1768491804724,30.94086713,142.57,142.51,0.05051928]
[1768491805717,0.04460821,142.55,142.47,6.3188]
[1768491806126,30.98547534,142.55,142.47,6.3188]
[1768491806721,0.04460821,142.55,142.47,99.6955]
[1768491806922,0.04460821,142.55,142.5,0.04704585]
[1768491807315,113.86086713,142.61,142.5,1.44704585]
[1768491807520,113.86086713,142.61,142.5,0.04704585]
[1768491807726,30.94086713,142.61,142.53,6.316]
[1768491808230,30.94086713,142.61,142.51,98.2659]
[1768491808421,30.94086713,142.61,142.54,6.3157]
[1768491808724,0.04836268,142.58,142.56,0.04914341]
[1768491808926,30.94086713,142.64,142.56,0.04914341]
[1768491809322,30.94086713,142.64,142.55,6.315]
[1768491809323,30.94086713,142.64,142.54,98.2472]
[1768491809523,30.94086713,142.64,142.56,6.3148]
[1768491810122,30.94086713,142.64,142.59,0.05012233]
[1768491810420,30.94086713,142.64,142.54,98.2468]
[1768491811222,30.94086713,142.64,142.57,6.3143]
[1768491811925,32.16172699,142.67,142.59,0.04623775]
[1768491812323,32.16172699,142.67,142.6,6.313]
[1768491812521,30.94086713,142.67,142.6,6.313]
[1768491813230,30.94086713,142.67,142.62,0.04574488]
[1768491813628,0.04542185,142.66,142.62,0.04574488]
[1768491814233,0.04542185,142.66,142.56,98.2296]
[1768491814631,30.94086713,142.67,142.56,98.2296]
[1768491815431,30.94086713,142.67,142.51,110.8999]
[1768491815432,30.94086713,142.67,142.6,0.05070857]
[1768491816737,0.04614719,142.65,142.6,0.05070857]
[1768491817739,30.98701432,142.65,142.56,6.3148]
[1768491818038,30.94086713,142.65,142.56,6.3148]
[1768491818236,30.94086713,142.63,142.54,6.3155]
[1768491818830,30.94086713,142.63,142.57,0.04516219]
[1768491821935,113.84086713,142.63,142.57,0.04516219]
[1768491822136,82.9,142.64,142.57,6.35966219]
[1768491822540,82.9,142.64,142.57,6.3145]
[1768491822839,30.94086713,142.63,142.55,6.3151]
[1768491823041,30.94086713,142.63,142.53,98.2511]
[1768491823349,30.94086713,142.63,142.51,98.2663]
[1768491823735,30.94086713,142.63,142.53,6.3159]
[1768491824143,30.94086713,142.61,142.53,6.3159]
[1768491824357,0.05097615,142.59,142.53,6.3159]
[1768491825646,0.05097615,142.59,142.55,0.05154559]
[1768491829645,82.95097615,142.59,142.55,0.05154559]
[1768491829850,0.05097615,142.59,142.55,0.05154559]
[1768491830345,82.95097615,142.59,142.55,0.05154559]
[1768491830545,0.05097615,142.59,142.55,0.05154559]
[1768491830747,82.9,142.62,142.56,6.3149]
[1768491832044,82.9,142.62,142.58,0.04671643]
[1768491832350,30.94086713,142.64,142.58,0.04671643]
[1768491832553,122.90864849,142.63,142.58,0.04671643]
[1768491832854,5.16855625,142.62,142.58,0.04671643]
[1768491833149,112.43209197,142.63,142.56,6.3149]
[1768491833355,0.0527295,142.61,142.56,6.3149]
[1768491834248,0.0527295,142.61,142.52,98.2559]
[1768491834646,112.43209197,142.63,142.52,98.2559]
[1768491834846,112.43209197,142.65,142.55,98.2395]
[1768491835150,10.4803041,142.64,142.55,98.2395]
[1768491835349,112.43209197,142.65,142.55,98.2395]
[1768491835550,10.48017308,142.64,142.55,98.2395]
[1768491835738,112.43209197,142.65,142.58,6.3138]
[1768491835941,10.48288706,142.64,142.58,6.3138]
[1768491836138,112.43209197,142.65,142.58,6.3138]
[1768491836337,10.48220117,142.64,142.58,6.3138]
[1768491836553,82.9,142.64,142.59,6.3136]
[1768491836746,82.9,142.64,142.55,98.2395]
[1768491837748,82.9,142.64,142.58,6.314]
[1768491838340,29.53209197,142.65,142.59,6.3136]
[1768491838740,29.53209197,142.65,142.55,98.2395]
[1768491838741,29.53209197,142.65,142.56,98.2288]
[1768491838946,29.53209197,142.65,142.61,0.04649841]
[1768491839951,0.0471469,142.64,142.55,98.2395]
[1768491840254,29.53209197,142.65,142.56,98.2335]
[1768491841053,0.0500005,142.62,142.56,98.2335]
[1768491841445,0.0500005,142.62,142.57,1.4]
[1768491841647,5.62599573,142.71,142.59,98.2116]
[1768491841648,112.41209197,142.68,142.59,98.2116]
[1768491842546,29.53209197,142.68,142.59,98.2116]
[1768491842748,29.53209197,142.68,142.62,6.3611092]
[1768491843955,0.04766655,142.66,142.62,6.3611092]
[1768491844260,0.04766655,142.66,142.63,6.3118]
[1768491844850,0.04766655,142.66,142.62,0.0489092]
[1768491845254,30.93209197,142.65,142.53,4.19832814]
[1768491845458,29.53209197,142.63,142.53,4.19832814]
[1768491845859,112.41209197,142.63,142.54,4.19832814]
[1768491846054,29.53209197,142.63,142.54,4.19832814]
[1768491846359,29.53209197,142.63,142.57,6.3145]
[1768491846554,0.04994403,142.6,142.57,6.3145]
[1768491846750,0.04994403,142.6,142.55,6.315]
[1768491847769,0.04994403,142.6,142.54,4.28308936]
[1768491848662,29.53209197,142.63,142.55,4.30261307]
[1768491848858,29.53209197,142.66,142.57,4.30261307]
[1768491849661,29.53209197,142.66,142.61,6.3127]
[1768491849970,0.05262315,142.63,142.61,6.3127]
[1768491850375,0.05262315,142.63,142.59,6.3134]
[1768491851370,0.05262315,142.63,142.57,10.61671307]
[1768491851569,0.05262315,142.63,142.57,4.30261307]
[1768491851780,29.58471512,142.63,142.54,4.31297657]
[1768491852069,29.53209197,142.63,142.54,4.31297657]
[1768491852273,0.05403984,142.6,142.54,4.31297657]
[1768491852871,0.05403984,142.6,142.56,6.3146]
[1768491853572,29.53209197,142.66,142.58,6.3139]
[1768491853771,40.04070144,142.65,142.58,6.3139]
[1768491854074,5.18606279,142.64,142.57,6.3145]
[1768491854373,29.53209197,142.65,142.56,4.2578164]
[1768491854882,0.0537983,142.62,142.56,4.2578164]
[1768491855179,0.0537983,142.62,142.58,6.314]
[1768491855373,0.0537983,142.62,142.54,98.2445]
[1768491855677,0.0537983,142.62,142.54,102.39437625]
[1768491856579,0.0537983,142.62,142.58,6.314]
[1768491858970,0.0537983,142.62,142.53,82.86]
[1768491858971,29.58589027,142.62,142.53,82.86]
[1768491859172,29.58589027,142.62,142.53,86.95282258]
[1768491859375,29.53209197,142.62,142.53,86.95282258]
[1768491860173,0.05174577,142.59,142.53,86.95282258]
[1768491861481,0.05174577,142.59,142.55,0.04643778]
[1768491861675,29.53209197,142.62,142.56,6.3149]
[1768491862384,5.19229019,142.61,142.56,6.3149]
[1768491862688,29.53209197,142.62,142.56,6.3149]
[1768491862870,0.05032908,142.6,142.56,6.3149]
[1768491865587,31.53224646,142.65,142.56,3.89188933]
[1768491865783,10.49832298,142.64,142.56,3.89188933]
[1768491865980,5.19072006,142.63,142.56,3.89188933]
[1768491866174,31.53224646,142.65,142.56,3.89188933]
[1768491866378,10.49894177,142.64,142.56,3.89188933]
[1768491866579,5.19082715,142.63,142.56,3.89188933]
[1768491866883,31.53224646,142.65,142.59,0.04828225]
[1768491867077,31.53224646,142.63,142.59,0.04828225]
[1768491869089,5.19104941,142.62,142.55,6.3151]
[1768491869384,31.53224646,142.63,142.53,184.86119844]
[1768491869683,36.72210312,142.62,142.53,102.00119844]
[1768491869884,31.53224646,142.62,142.54,82.88]
[1768491870682,31.53224646,142.62,142.56,6.315]
[1768491870885,5.18782372,142.61,142.56,6.315]
[1768491871084,31.53224646,142.62,142.56,6.315]
[1768491871689,0.04615563,142.6,142.56,6.315]
[1768491871888,31.57840209,142.6,142.5,102.02723092]
[1768491872191,31.53224646,142.6,142.48,98.2871]
[1768491872395,31.53224646,142.58,142.52,6.3166]
[1768491872887,0.05310002,142.56,142.52,6.3166]
[1768491873392,31.53224646,142.61,142.54,6.36938875]
[1768491873593,5.19029585,142.6,142.54,6.36938875]
[1768491873795,31.53224646,142.61,142.54,6.3155]
[1768491873994,5.1903062,142.6,142.54,6.3155]
[1768491874193,31.53224646,142.61,142.54,6.3155]
[1768491874395,5.19124869,142.6,142.54,6.3155]
[1768491874693,31.53224646,142.61,142.56,0.04676608]
[1768491874892,36.7234847,142.6,142.56,0.04676608]
[1768491875094,31.53224646,142.6,142.56,0.04676608]
[1768491875794,31.53224646,142.58,142.52,6.3164]
[1768491877592,0.04736213,142.56,142.52,6.3164]
[1768491877992,0.04736213,142.56,142.53,0.05064975]
[1768491880895,0.04736213,142.56,142.5,6.3173]
[1768491881405,0.04736213,142.56,142.51,6.3172]
[1768491882198,31.57960859,142.56,142.5,6.3173]
[1768491882397,31.57960859,142.56,142.52,0.04629688]
[1768491882599,31.57960859,142.56,142.5,6.3173]
[1768491882799,33.7859969,142.56,142.46,12.1383667]
[1768491882987,33.7859969,142.56,142.46,95.0183667]
[1768491883191,33.73863477,142.56,142.46,95.0183667]
[1768491883392,31.53224646,142.56,142.46,92.81197839]
[1768491883894,0.0532248,142.52,142.46,92.81197839]
[1768491884288,31.53224646,142.56,142.51,6.3172]
[1768491885392,0.0501445,142.55,142.51,6.3172]
[1768491885700,0.0501445,142.55,142.49,9.87373777]
[1768491886798,0.0501445,142.55,142.5,6.3176]
[1768491889499,0.0501445,142.55,142.51,0.04888999]
[1768491889802,31.58239096,142.55,142.51,0.04888999]
[1768491891206,31.13723809,142.58,142.51,0.04888999]
[1768491891905,31.13723809,142.58,142.52,6.3167]
[1768491892410,0.05078769,142.56,142.52,6.3167]
[1768491893301,31.13723809,142.61,142.51,9.20215541]
[1768491893500,10.46820819,142.6,142.51,9.20215541]
[1768491893700,31.13723809,142.61,142.51,9.15326542]
[1768491894007,41.60587383,142.6,142.51,9.15326542]
[1768491894200,31.13723809,142.6,142.51,9.15326542]
[1768491894400,31.13723809,142.63,142.54,0.05110362]
[1768491894602,41.60852408,142.62,142.54,0.05110362]
[1768491894802,5.17734882,142.61,142.53,9.05851476]
[1768491895001,36.31458691,142.61,142.57,0.04796881]
[1768491895202,31.13723809,142.61,142.53,9.05851476]
[1768491895904,31.13723809,142.61,142.54,6.3157]
[1768491897710,31.13723809,142.61,142.56,0.04559215]
[1768491898009,0.04776618,142.59,142.56,0.04559215]
[1768491899305,31.18500427,142.59,142.52,6.3163]
[1768491899507,31.18500427,142.59,142.5,110.32323533]
[1768491899706,31.13723809,142.59,142.5,110.32323533]
[1768491900009,31.13723809,142.59,142.5,106.87423817]
[1768491900308,31.13723809,142.59,142.47,8.51243267]
[1768491900504,31.13723809,142.55,142.45,8.56417756]
[1768491900814,31.13723809,142.55,142.46,6.319]
[1768491901103,31.13723809,142.54,142.45,8.56417756]
[1768491901306,119.3292,142.6,142.49,8.4767875]
[1768491901307,31.13723809,142.6,142.49,8.4767875]
[1768491901510,31.13723809,142.58,142.49,8.4767875]
[1768491901699,5.18212771,142.57,142.49,8.4767875]
[1768491901903,0.04787713,142.56,142.49,106.7552875]
[1768491902100,0.04787713,142.56,142.5,8.4767875]
[1768491902408,31.18511522,142.56,142.51,0.0462034]
[1768491903206,0.04787713,142.56,142.51,0.0462034]
[1768491903405,31.18511522,142.56,142.51,0.0462034]
[1768491907615,0.04787713,142.56,142.51,8.0188302]
[1768491908913,3.44899716,142.62,142.53,7.89177965]
[1768491908914,31.13723809,142.62,142.53,7.89177965]
[1768491909114,5.18653419,142.61,142.53,7.89177965]
[1768491909412,31.13723809,142.62,142.53,6.3159]
[1768491909714,41.62508314,142.61,142.52,7.76398398]
[1768491909910,36.32266644,142.6,142.52,7.76398398]
[1768491910109,0.04837466,142.58,142.55,0.05182027]
[1768491910305,31.13723809,142.63,142.55,0.05182027]
[1768491910510,5.18647441,142.62,142.55,7.73680365]
[1768491910704,31.13723809,142.63,142.55,7.68498338]
[1768491910911,31.13723809,142.63,142.57,6.3144]
[1768491911506,31.13723809,142.66,142.57,7.60689019]
[1768491912312,31.13723809,142.69,142.59,7.52969397]
[1768491912513,41.62550345,142.68,142.59,7.52969397]
[1768491912713,41.62550345,142.68,142.59,13.84299397]
[1768491912714,0.05219955,142.63,142.59,13.84299397]
[1768491912911,31.13723809,142.68,142.59,13.84299397]
[1768491913113,41.63025088,142.67,142.62,0.04704772]
[1768491913418,0.04466698,142.65,142.62,0.04704772]
[1768491914219,31.13723809,142.7,142.62,0.04704772]
[1768491914420,10.50042747,142.69,142.62,0.04704772]
[1768491914616,5.1920422,142.68,142.64,6.3113]
[1768491914818,31.13723809,142.7,142.64,6.3113]
[1768491915013,5.19091373,142.69,142.64,6.3113]
[1768491915321,31.13723809,142.73,142.64,7.30612291]
[1768491915522,31.13723809,142.73,142.65,0.05122469]
[1768491915913,31.13723809,142.73,142.66,6.3103]
[1768491916113,31.13723809,142.75,142.65,7.28498298]
[1768491916318,31.13723809,142.75,142.66,7.23375829]
[1768491916820,31.13723809,142.75,142.69,0.04692891]
[1768491922920,27.83821199,142.73,142.63,89.58374742]
[1768491923231,27.78643857,142.73,142.64,6.3112]
[1768491923625,27.78643857,142.73,142.63,89.58374742]
[1768491923626,27.78643857,142.73,142.63,95.89544742]
[1768491923923,27.78643857,142.73,142.63,82.84]
[1768491924123,31.23543573,142.73,142.67,0.05283387]
[1768491924330,0.0499441,142.69,142.67,0.05283387]
[1768491924527,27.78643857,142.73,142.67,0.05283387]
[1768491925330,27.84455765,142.76,142.67,6.56600333]
[1768491925533,27.84455765,142.76,142.67,104.72390333]
[1768491925729,27.84455765,142.76,142.67,104.67106946]
[1768491926033,27.84455765,142.76,142.7,0.0518245]
[1768491926731,0.05111826,142.74,142.7,0.0518245]
[1768491930627,0.05111826,142.74,142.67,12.82296946]
[1768491930628,27.89567591,142.74,142.67,6.3098]
[1768491931331,27.89567591,142.74,142.65,6.203263]
[1768491931830,27.84455765,142.74,142.68,6.36253111]
[1768491932833,27.84455765,142.74,142.69,6.3091]
[1768491933327,27.84455765,142.78,142.68,6.12962306]
[1768491933533,27.84455765,142.78,142.71,6.3082]
[1768491933936,27.84455765,142.78,142.72,0.05053329]
[1768491937940,29.24455765,142.78,142.63,98.1793]
[1768491938234,27.84455765,142.74,142.65,6.3106]
[1768491938433,27.84455765,142.72,142.62,82.82]
[1768491938630,27.84455765,142.7,142.59,5.83950297]
[1768491938835,27.84455765,142.7,142.62,6.3121]
[1768491939436,0.04785713,142.67,142.65,0.04874193]
[1768491941035,0.04785713,142.67,142.62,6.3121]
[1768491941332,0.04785713,142.67,142.62,5.72192919]
[1768491941637,27.84455765,142.7,142.62,5.72192919]
[1768491942135,27.84455765,142.7,142.6,5.66775924]
[1768491942524,27.84455765,142.7,142.62,5.66775924]
[1768491942928,0.04494555,142.67,142.64,6.3114]
[1768491943127,27.84455765,142.7,142.65,0.0448506]
[1768491943536,27.84455765,142.7,142.65,6.3557506]
[1768491944636,27.84455765,142.7,142.65,0.0448506]
[1768491946139,29.24455765,142.7,142.59,5.56363616]
[1768491946338,27.84455765,142.7,142.59,5.56363616]
[1768491946533,27.84455765,142.67,142.58,89.1138]
[1768491946733,27.84455765,142.67,142.54,5.50605823]
[1768491947144,33.46462127,142.67,142.54,5.50605823]
[1768491947535,0.05220664,142.62,142.59,0.05149468]
[1768491949842,27.84455765,142.67,142.59,11.72077207]
[1768491950036,27.84455765,142.67,142.59,5.40727207]
[1768491951040,27.84455765,142.67,142.61,6.3126]
[1768491951335,0.04775628,142.64,142.61,6.3126]
[1768491951532,27.84455765,142.67,142.63,0.04719869]
[1768491953638,0.04803974,142.66,142.63,0.04719869]
[1768491953844,29.86472249,142.66,142.57,2.20354663]
[1768491954046,29.86472249,142.66,142.56,5.11689734]
[1768491954247,29.81668275,142.66,142.56,5.11689734]
[1768491954447,29.81668275,142.66,142.57,6.3145]
[1768491955144,29.81668275,142.66,142.6,0.05358555]
[1768491955947,27.61313612,142.66,142.6,0.05358555]
[1768491956148,29.81668275,142.65,142.6,0.05358555]
[1768491956348,27.61313612,142.65,142.6,0.05358555]
[1768491956541,29.81668275,142.65,142.6,0.05358555]
[1768491956850,29.81668275,142.65,142.56,6.3146]
[1768491958147,0.04957616,142.62,142.59,0.04526453]
[1768491960149,29.81668275,142.65,142.6,6.3131]
[1768491960551,29.81668275,142.65,142.59,0.04526453]
[1768491961054,27.61313612,142.62,142.53,185.98124473]
[1768491961650,27.61313612,142.62,142.57,6.3143]
[1768491962050,89.1706,142.66,142.58,6.314]
[1768491962051,29.81668275,142.65,142.58,6.314]
[1768491962252,29.81668275,142.65,142.56,7.06887194]
[1768491962454,2.20354663,142.67,142.6,0.04592805]
[1768491962648,27.61313612,142.68,142.6,0.04592805]
[1768491962854,27.61313612,142.68,142.6,4.91125336]
[1768491963056,27.61313612,142.71,142.61,4.82378853]
[1768491963251,29.81668275,142.71,142.62,2.20354663]
[1768491963741,2.20354663,142.69,142.62,6.3119]
[1768491963941,29.81668275,142.69,142.62,6.3119]
[1768491964150,29.81668275,142.69,142.59,82.86]
[1768491964346,29.81668275,142.69,142.58,2.20354663]
[1768491964743,29.81668275,142.67,142.57,103.05234747]
[1768491964943,29.81668275,142.67,142.58,2.20354663]
[1768491965147,29.81668275,142.67,142.57,103.05234747]
[1768491965349,29.81668275,142.67,142.58,2.20354663]
[1768491965549,29.81668275,142.67,142.6,6.3128]
[1768491965756,2.20354663,142.66,142.56,89.85150602]
[1768491966056,29.81668275,142.66,142.56,89.85150602]
[1768491966449,0.05262312,142.62,142.6,0.04897005]
[1768491966648,29.81668275,142.66,142.6,0.04897005]
[1768491967064,27.61313612,142.63,142.56,82.86]
[1768491968054,29.81668275,142.62,142.53,4.79680755]
[1768491968262,29.81668275,142.6,142.5,105.192094]
[1768491968454,29.81668275,142.6,142.5,188.052094]
[1768491968844,29.81668275,142.6,142.5,89.780394]
[1768491969056,0.04890298,142.56,142.54,0.04919056]
[1768491971269,27.61313612,142.6,142.54,0.04919056]
[1768491971761,27.61313612,142.6,142.5,4.71684737]
[1768491971964,27.61313612,142.55,142.42,10.97178276]
[1768491972163,27.61313612,142.55,142.43,10.93812964]
[1768491972967,27.61313612,142.55,142.43,109.25852964]
[1768491973265,0.04740047,142.5,142.43,109.25852964]
[1768491973464,0.04740047,142.5,142.48,0.05311168]
[1768491973665,0.04740047,142.5,142.43,109.25852964]
[1768491973870,0.04740047,142.5,142.45,0.0489758]
[1768491974072,27.61313612,142.55,142.45,10.95383886]
[1768491974268,27.61313612,142.55,142.46,10.87197858]
[1768491974673,27.61313612,142.55,142.47,6.3188]
[1768491975167,27.61313612,142.55,142.5,0.04484571]
[1768491975573,0.05271034,142.54,142.5,0.04484571]
[1768491976467,27.66584646,142.54,142.45,6.3198]
[1768491976865,27.61313612,142.54,142.39,109.20208413]
[1768491977172,27.61313612,142.47,142.32,115.5900405]
[1768491977374,27.61313612,142.47,142.32,17.1925405]
[1768491977375,33.24168893,142.45,142.32,17.1925405]
[1768491977569,33.24168893,142.45,142.28,115.6148405]
[1768491977570,27.61313612,142.42,142.28,115.6148405]
[1768491977870,27.61313612,142.41,142.26,98.4349]